Workbook

Sheet Pflanzenschutzplanung 2021
B1: Wichtig: Die gegenüber der Praxis niedrigeren Reinupfermengen sind nur durch die synergistische Wirkung mit Kumar in der Tankmischung möglich. Die reduzierten Mengen von Netzschwefel in Mischung wie in der Tabelle empfohlen!
A4: Bitte zutreffendes auswählen (Pulldown-Felder) ►► | B4: Peronospora Risiko auswählen ►► | C4: mittel bis hoch | D4: E | E4: Oidium Risiko auswählen ►► | F4: mittel bis hoch | G4: E | H4: Prognose-Werte über-nehmen? ►► | I4: ja | J4: E
E5: oder | N5: Wasser-Aufwand | O5: Netzschwefel (z.B. Stulln)
A6: Termin / Stadium | B6: Menge Reinkupfer nach Prognose | C6: Reinkupfer [g / ha] H | D6: Menge Cuprozin progress [L / ha] | E6: Gesamt-Menge auf Gesamtfläche | F6: Menge Reinkupfer nach Prognose | G6: Reinkupfer [g / ha] H | H6: Menge Funguran progress [kg / ha] | I6: Menge Funguran progress auf Gesamtfläche | J6: Menge Kumar nach Prognose | K6: Aufwand [kg / ha] H | L6: Menge Kumar [kg/ha] | M6: Menge Kumar auf Gesamtfläche | N6: Aufwand Empfehlung praxisüblich | O6: Menge Netzschwefel nach Prognose | P6: Aufwand [kg / ha] H | Q6: Menge Netzschwefel nach Gesamtfläche | R6: Wasser-Aufwand praxisüblich (2 fach)
A7: ES 15 | B7: =IF($C$4="niedrig bis mittel", 'Rohdaten Peronospora'!J13, 'Rohdaten Peronospora'!K13) -> 100 | C7: =IF($I$4="ja",B7,"") -> 100 | D7: =C7/250 -> 0.4 | E7: =D7*G24 -> 2 | F7: =IF($C$4="niedrig bis mittel", 'Rohdaten Peronospora'!M13, 'Rohdaten Peronospora'!N13) -> 100 | G7: =IF($I$4="ja",F7,"") -> 100 | H7: =1000*G7/350/1000 -> 0.2857142857 | I7: =H7*G24 -> 1.428571429 | J7: =IF($F$4="niedrig bis mittel", 'Rohdaten Oidium'!J13, 'Rohdaten Oidium'!K13) -> 0 | K7: =IF($I$4="ja",J7,"") -> 0 | L7: =K7 -> 0 | M7: =L7*$G$24 -> 0 | N7: 200 L | O7: =IF($F$4="niedrig bis mittel", 'Rohdaten Oidium'!M13, 'Rohdaten Oidium'!N13) -> 3.6 | P7: =IF($I$4="ja",O7,"") -> 3.6 | Q7: =P7*$G$24 -> 18 | R7: 200 L
A8: ES 53-55 | B8: =IF($C$4="niedrig bis mittel", 'Rohdaten Peronospora'!J14, 'Rohdaten Peronospora'!K14) -> 120 | C8: 120 | D8: 0.48 | E8: =D8*G24 -> 2.4 | F8: =IF($C$4="niedrig bis mittel", 'Rohdaten Peronospora'!M14, 'Rohdaten Peronospora'!N14) -> 150 | G8: 150 | H8: 0.4285714286 | I8: =H8*G24 -> 2.142857143 | J8: =IF($F$4="niedrig bis mittel", 'Rohdaten Oidium'!J14, 'Rohdaten Oidium'!K14) -> 1.25 | K8: 1.25 | L8: 1.25 | M8: 6.25 | N8: 400 L | O8: =IF($F$4="niedrig bis mittel", 'Rohdaten Oidium'!M14, 'Rohdaten Oidium'!N14) -> 3 | P8: 3 | Q8: 15 | R8: 400 L
A9: ES 65 | B9: =IF($C$4="niedrig bis mittel", 'Rohdaten Peronospora'!J15, 'Rohdaten Peronospora'!K15) -> 150 | C9: 150 | D9: 0.6 | E9: =D9*G24 -> 3 | F9: =IF($C$4="niedrig bis mittel", 'Rohdaten Peronospora'!M15, 'Rohdaten Peronospora'!N15) -> 200 | G9: 200 | H9: 0.5714285714 | I9: =H9*G24 -> 2.857142857 | J9: =IF($F$4="niedrig bis mittel", 'Rohdaten Oidium'!J15, 'Rohdaten Oidium'!K15) -> 2.5 | K9: 2.5 | L9: 2.5 | M9: 12.5 | N9: 400 L | O9: =IF($F$4="niedrig bis mittel", 'Rohdaten Oidium'!M15, 'Rohdaten Oidium'!N15) -> 3 | P9: 3 | Q9: 15 | R9: 400 L
A10: ES 68 | B10: =IF($C$4="niedrig bis mittel", 'Rohdaten Peronospora'!J16, 'Rohdaten Peronospora'!K16) -> 150 | C10: 150 | D10: 0.6 | E10: =D10*G24 -> 3 | F10: =IF($C$4="niedrig bis mittel", 'Rohdaten Peronospora'!M16, 'Rohdaten Peronospora'!N16) -> 250 | G10: 250 | H10: 0.7142857143 | I10: =H10*G24 -> 3.571428571 | J10: =IF($F$4="niedrig bis mittel", 'Rohdaten Oidium'!J16, 'Rohdaten Oidium'!K16) -> 2.5 | K10: 2.5 | L10: 2.5 | M10: 12.5 | N10: 500 L | O10: =IF($F$4="niedrig bis mittel", 'Rohdaten Oidium'!M16, 'Rohdaten Oidium'!N16) -> 3 | P10: 3 | Q10: 15 | R10: 500 L
A11: ES 71 | B11: =IF($C$4="niedrig bis mittel", 'Rohdaten Peronospora'!J17, 'Rohdaten Peronospora'!K17) -> 200 | C11: 200 | D11: 0.8 | E11: =D11*G24 -> 4 | F11: =IF($C$4="niedrig bis mittel", 'Rohdaten Peronospora'!M17, 'Rohdaten Peronospora'!N17) -> 300 | G11: 300 | H11: 0.8571428571 | I11: =H11*G24 -> 4.285714286 | J11: =IF($F$4="niedrig bis mittel", 'Rohdaten Oidium'!J17, 'Rohdaten Oidium'!K17) -> 3.75 | K11: 3.75 | L11: 3.75 | M11: 18.75 | N11: 600 L | O11: =IF($F$4="niedrig bis mittel", 'Rohdaten Oidium'!M17, 'Rohdaten Oidium'!N17) -> 2 | P11: 2 | Q11: 10 | R11: 600 L
A12: Weitere Beh. 1 | B12: =IF($C$4="niedrig bis mittel", 'Rohdaten Peronospora'!J18, 'Rohdaten Peronospora'!K18) -> 200 | C12: 200 | D12: 0.8 | E12: =D12*G24 -> 4 | F12: =IF($C$4="niedrig bis mittel", 'Rohdaten Peronospora'!M18, 'Rohdaten Peronospora'!N18) -> 300 | G12: 300 | H12: 0.8571428571 | I12: =H12*G24 -> 4.285714286 | J12: =IF($F$4="niedrig bis mittel", 'Rohdaten Oidium'!J18, 'Rohdaten Oidium'!K18) -> 5 | K12: 5 | L12: 5 | M12: 25 | N12: 800 L | O12: =IF($F$4="niedrig bis mittel", 'Rohdaten Oidium'!M18, 'Rohdaten Oidium'!N18) -> 1 | P12: 1 | Q12: 5 | R12: 800 L
A13: Weitere Beh. 2 | B13: =IF($C$4="niedrig bis mittel", 'Rohdaten Peronospora'!J19, 'Rohdaten Peronospora'!K19) -> 150 | C13: 150 | D13: 0.6 | E13: =D13*G24 -> 3 | F13: =IF($C$4="niedrig bis mittel", 'Rohdaten Peronospora'!M19, 'Rohdaten Peronospora'!N19) -> 250 | G13: 250 | H13: 0.7142857143 | I13: =H13*G24 -> 3.571428571 | J13: =IF($F$4="niedrig bis mittel", 'Rohdaten Oidium'!J19, 'Rohdaten Oidium'!K19) -> 5 | K13: 5 | L13: 5 | M13: 25 | N13: 800 L | O13: =IF($F$4="niedrig bis mittel", 'Rohdaten Oidium'!M19, 'Rohdaten Oidium'!N19) -> 1 | P13: 1 | Q13: 5 | R13: 800 L
A14: Weitere Beh. 3 | B14: =IF($C$4="niedrig bis mittel", 'Rohdaten Peronospora'!J20, 'Rohdaten Peronospora'!K20) -> 150 | C14: 150 | D14: 0.6 | E14: =D14*G24 -> 3 | F14: =IF($C$4="niedrig bis mittel", 'Rohdaten Peronospora'!M20, 'Rohdaten Peronospora'!N20) -> 250 | G14: 250 | H14: 0.7142857143 | I14: =H14*G24 -> 3.571428571 | J14: =IF($F$4="niedrig bis mittel", 'Rohdaten Oidium'!J20, 'Rohdaten Oidium'!K20) -> 5 | K14: 5 | L14: 5 | M14: 25 | N14: 800 L | O14: =IF($F$4="niedrig bis mittel", 'Rohdaten Oidium'!M20, 'Rohdaten Oidium'!N20) -> 1 | P14: 1 | Q14: 5 | R14: 800 L
A15: Weitere Beh. 4 | B15: =IF($C$4="niedrig bis mittel", 'Rohdaten Peronospora'!J21, 'Rohdaten Peronospora'!K21) -> 150 | C15: 150 | D15: 0.6 | E15: =D15*G24 -> 3 | F15: =IF($C$4="niedrig bis mittel", 'Rohdaten Peronospora'!M21, 'Rohdaten Peronospora'!N21) -> 250 | G15: 250 | H15: 0.7142857143 | I15: =H15*G24 -> 3.571428571 | J15: =IF($F$4="niedrig bis mittel", 'Rohdaten Oidium'!J21, 'Rohdaten Oidium'!K21) -> 5 | K15: 5 | L15: 5 | M15: 25 | N15: 800 L | O15: =IF($F$4="niedrig bis mittel", 'Rohdaten Oidium'!M21, 'Rohdaten Oidium'!N21) -> 0 | P15: 0 | Q15: 0 | R15: 800 L
A16: Weitere Beh. 5 | B16: =IF($C$4="niedrig bis mittel", 'Rohdaten Peronospora'!J22, 'Rohdaten Peronospora'!K22) -> 180 | C16: 180 | D16: 0.72 | E16: =D16*G24 -> 3.6 | F16: =IF($C$4="niedrig bis mittel", 'Rohdaten Peronospora'!M22, 'Rohdaten Peronospora'!N22) -> 300 | G16: 300 | H16: 0.8571428571 | I16: =H16*G24 -> 4.285714286 | J16: =IF($F$4="niedrig bis mittel", 'Rohdaten Oidium'!J22, 'Rohdaten Oidium'!K22) -> 5 | K16: 5 | L16: 5 | M16: 25 | N16: 800 L | O16: =IF($F$4="niedrig bis mittel", 'Rohdaten Oidium'!M22, 'Rohdaten Oidium'!N22) -> 0 | P16: 0 | Q16: 0 | R16: 800 L
A17: Fruchtreife | B17: =IF($C$4="niedrig bis mittel", 'Rohdaten Peronospora'!J23, 'Rohdaten Peronospora'!K23) -> 300 | C17: 300 | D17: 1.2 | E17: =D17*G24 -> 6 | F17: =IF($C$4="niedrig bis mittel", 'Rohdaten Peronospora'!M23, 'Rohdaten Peronospora'!N23) -> 300 | G17: 300 | H17: 0.8571428571 | I17: =H17*G24 -> 4.285714286 | J17: =IF($F$4="niedrig bis mittel", 'Rohdaten Oidium'!J23, 'Rohdaten Oidium'!K23) -> 5 | K17: 5 | L17: 5 | M17: 25 | N17: 800 L | O17: =IF($F$4="niedrig bis mittel", 'Rohdaten Oidium'!M23, 'Rohdaten Oidium'!N23) -> 0 | P17: 0 | Q17: 0 | R17: 800 L
K18: =IF(COUNT(K7:K17)>6,"Kumar ist max. 6x in der Saison erlaubt!","") -> Kumar ist max. 6x in der Saison erlaubt!
C19: =SUM(C7:C17)/1000 -> 1.85 | D19: =SUM(D7:D18) -> 7.4 | E19: =SUM(E7:E18) -> 37 | G19: =SUM(G7:G17)/1000 -> 2.65 | H19: =SUM(H6:H17) -> 7.571428571 | I19: =SUM(I7:I17) -> 37.85714286 | K19: =SUM(K7:K17) -> 40 | L19: =K19 -> 40 | M19: =SUM(M7:M17) -> 200 | P19: =N19 -> 0 | Q19: =SUM(Q7:Q17) -> 88
C20: kg / ha | D20: (L / ha) | E20: L | G20: kg / ha) | H20: Kg / ha | I20: kg | K20: kg / ha | L20: kg / ha | M20: kg | P20: (kg / ha) | Q20: kg gesamt
C21: Gesamtkosten / Rebfläche komplett | E21: =E19*B25 -> 971.25 | G21: Gesamtkosten / Rebfläche komplett | I21: =I19*B26 -> 539.4642857 | K21: Gesamtkosten / Rebfläche komplett | M21: =M19*B27 -> 2370 | O21: Gesamt (ohne NS) | Q21: =C24*G24 -> 3880.714286
B23: Eingabe | C23: Kosten / ha | E23: Kupfer / ha | G23: Eingabe Gesamtfläche | K23: Gesamtbedarf für Bestellung
A24: Produkt | B24: Preis / Kg bzw. L | C24: =SUM(E21,I21,M21)/G24 -> 776.1428571 | E24: =SUM(C19,G19) -> 4.5 | F24: kg | G24: 5 | H24: ha | I24: Produkt | K24: L bzw. kg | L24: Bedarf aufgerundet
A25: Cuprozin progress | B25: 26.25 | C25: E | I25: Cuprozin progress | K25: =G24*D19 -> 37 | L25: =ROUNDUP(K25/5,0)*5 -> 40 | M25: Liter
A26: Funguran progress | B26: 14.25 | G26: G | I26: Funguran progress | K26: =G24*H19 -> 37.85714286 | L26: =ROUNDUP(K26/10,0)*10 -> 40 | M26: kg
A27: Kumar | B27: 11.85 | I27: Kumar | K27: =G24*L19 -> 200 | L27: =ROUNDUP(K27,-1) -> 200 | M27: kg
A28: (Vergleichspreis 2021) zzgl. Mwst. | I28: Netzschwefel | K28: =Q19 -> 88 | L28: =ROUNDUP(K28,-1) -> 90 | M28: kg

Sheet Prognose
A3: Prognosen Region | B3: Prognose gesamt | D3: https://www.vitimeteo.de/
A5: Rheingau | B5: Oidium | D5: https://rebschutz.hs-geisenheim.de/wetterstationen/tagesauswertung.php
A6: Rheingau | B6: Peronospora | D6: https://rebschutz.hs-geisenheim.de/wetterstationen/tagesauswertung.php
A8: Rheinhessen | B8: Oidium | D8: https://www.dlr.rlp.de/Agrarmeteorologie/Landwirtschaft/Weinbau/Prognose/Oidium-Vitimeteo/Rheinhessen
A9: Rheinhessen | B9: Peronospora | D9: https://www.dlr.rlp.de/Agrarmeteorologie/Landwirtschaft/Weinbau/Prognose/Peronospora-Vitimeteo/Rheinhessen
A11: Pfalz | B11: Oidium | D11: https://www.dlr.rlp.de/Agrarmeteorologie/Landwirtschaft/Weinbau/Prognose/Oidium-Vitimeteo/Pfalz
A12: Pfalz | B12: Peronospora | D12: https://www.dlr.rlp.de/Agrarmeteorologie/Landwirtschaft/Weinbau/Prognose/Peronospora-Vitimeteo/Pfalz
A14: Franken | B14: Oidium | D14: https://www.vitimeteo-by.de/vitimeteo/default/index
A15: Franken | B15: Peronospora | D15: https://www.vitimeteo-by.de/vitimeteo/default/index
A17: Baden-Württemberg | B17: Oidium | D17: https://www.vitimeteo.de/vitimeteo/default/index
A18: Baden-Württemberg | B18: Peronospora | D18: https://www.vitimeteo.de/vitimeteo/default/index
A20: Nahe / Mittelrhein | B20: Oidium | D20: https://www.wetter.rlp.de/Agrarmeteorologie/Landwirtschaft/Weinbau/Prognose/Oidium-Vitimeteo/Nahe-Mittelrhein
A21: Nahe / Mittelrhein | B21: Peronospora | D21: https://www.wetter.rlp.de/Agrarmeteorologie/Landwirtschaft/Weinbau/Prognose/Peronospora-Vitimeteo/Nahe-Mittelrhein
A23: Mosel-Saar-Ruwer, Ahr | B23: Oidium | D23: https://www.dlr.rlp.de/Agrarmeteorologie/Landwirtschaft/Weinbau/Prognose/Oidium-Vitimeteo/Mosel-Saar-Ruwer,-Ahr
A24: Mosel-Saar-Ruwer, Ahr | B24: Peronospora | D24: https://www.wetter.rlp.de/Agrarmeteorologie/Landwirtschaft/Weinbau/Prognose/Peronospora-Vitimeteo/Mosel-Saar-Ruwer,-Ahr
A26: Fotos von weinbaulichen Schaderregern und Schadsymptomen
A27: https://www.hs-geisenheim.de/praxis/praxiswissen/wetterrebschutz/schadbilder-weinbau/
A29: M A XIM A L MÖ G L I CHER SPRIT Z A B STA ND N ACH O I D I AG 2021 | H29: Falscher Mehltau | I29: Echter Mehltau
A30: Zuletzt verwendetes Mehltaumittel | C30: Aktueller Indexwert | G30: Temperaturoptimum | H30: 22 bis 25 °C | I30: 20 bis 27 °C
C31: 0-33 | D31: 34-66 | E31: > 66 | G31: Ausbruchsbedingungen | H31: Dunkelheit: 22 Uhr bis 5 Uhr Temperatur zu Beginn der Feucht-/Dunkelphase > 11,5°C Temperaturmittel in der Ausbruchsperiode 22°° - 5°° > 8°C | I31: Dunkelheit/Licht
C32: geringes Risiko | D32: mittleres Risiko | E32: hohes Risiko
A33: Produkte | B33: Einstufung | C33: Tage max. Spritzabstand | H33: Relative Feuchte > 95 %
A34: Netzschwefel Kumar | G34: Optimale Infektionsbedingungen | H34: Je höher die Temperaturen und je länger die Nässeperiode | I34: Je länger die Temperaturen im Optimalbereich bei gleichzeitig
B35: 1 | C35: 10 bis 12 Tage | D35: 7 bis 9 Tage | E35: 6 bis 7 Tage | I35: hoher Luftfeuchte
G36: Quelle: Dipl. Önologe Dr., Uwe Hofmann, ECO-CONSULT

Sheet Berechnung Mittel - Wasser
A45: Quelle: Rebschutzbroschüre DLR Rheinhessen-Nahe-Hunsrück 2021

Sheet Anwendertipps
A1: Mischbarkeit von Pflanzenbehandlungsmitteln im ökologischen Weinbau
A4: Mittel | B4: Kupfer- hydroxid + Kupfersulfat | C4: MycoSin- VIN | D4: Schwefel | E4: Vitisan | F4: Kumar | G4: FytoSave | H4: Taegro | I4: Molkepulver mOlnasa | J4: BIOCOS | K4: Equisetum plus | L4: Wasserglas | M4: BT - | N4: Bio Aminosol | O4: WETCIT | P4: Cocana | Q4: ProFital Fluid | R4: NuFilm
A7: Kupferhydroxid + Kupfersulfat | C7: -- | D7: + | E7: + | F7: + | G7: + | H7: + | I7: + | J7: + | K7: + | L7: + | M7: + 1) | N7: + 2) | O7: + | P7: + | Q7: + | R7: +
A9: MycoSin-VIN | B9: -- | D9: + | E9: - | F9: - | G9: ? | H9: ? | I9: - | J9: - | K9: - | L9: - | M9: + | N9: - | O9: - | P9: - | Q9: - | R9: -
A11: Schwefel | B11: + | C11: + | E11: + | F11: + | G11: + | H11: + | I11: + | J11: + | K11: + | L11: + | M11: + | N11: + | O11: + | P11: + | Q11: + | R11: +
A13: Vitisan | B13: + | C13: - | D13: + | F13: - | G13: + | H13: + | I13: - | J13: - | K13: + | L13: - | M13: + | N13: + | O13: + | P13: + | Q13: + | R13: +
A15: Kumar | B15: + | C15: - | D15: + | E15: - | G15: + | H15: + | I15: - | J15: - | K15: - | L15: - | M15: + | N15: - | O15: - | P15: - | Q15: - | R15: -
A17: FytoSave | B17: + | C17: ? | D17: + | E17: + | F17: + | H17: - | I17: ? | J17: ? | K17: ? | L17: ? | M17: ? | N17: ? | O17: + | P17: ? | Q17: ? | R17: ?
A19: Taegro | B19: + | C19: ? | D19: + | E19: + | F19: + | G19: - | I19: ? | J19: ? | K19: ? | L19: ? | M19: ? | N19: ? | O19: + | P19: ? | Q19: ? | R19: ?
A21: Molkepulver mOlnasa | B21: + | C21: - | D21: + | E21: - | F21: - | G21: ? | H21: ? | J21: + | K21: - | L21: - | M21: + | N21: + | O21: + | P21: + | Q21: + | R21: +
A23: BIOCOS | B23: + | C23: - | D23: + | E23: - | F23: - | G23: ? | H23: ? | I23: + | K23: + | L23: - | M23: - | N23: - | O23: - | P23: - | Q23: - | R23: -
A25: Equisetum plus | B25: + | C25: - | D25: + | E25: + | F25: - | G25: ? | H25: ? | I25: - | J25: + | L25: + | M25: - | N25: + | O25: + | P25: + | Q25: + | R25: +
A27: Wasserglas 4) | B27: + | C27: - | D27: + | E27: - | F27: - | G27: ? | H27: ? | I27: - | J27: - | K27: + | M27: - | N27: + 3) | O27: + | P27: + | Q27: + | R27: +
A29: BT -Präparate | B29: + 1) | C29: + | D29: + | E29: + | F29: + | G29: ? | H29: ? | I29: + | J29: - | K29: - | L29: - | N29: - | O29: + | P29: + | Q29: + | R29: +
A31: Bio Aminosol | B31: + 2) | C31: - | D31: + | E31: + | F31: - | G31: ? | H31: ? | I31: + | J31: - | K31: + | L31: + 3) | M31: - | O31: + | P31: + | Q31: + | R31: +
A33: WETCIT | B33: + | C33: - | D33: + | E33: + | F33: - | G33: + | H33: + | I33: + | J33: - | K33: + | L33: + | M33: + | N33: + | P33: - | Q33: - | R33: -
A35: Cocana | B35: + | C35: - | D35: + | E35: + | F35: - | G35: ? | H35: ? | I35: + | J35: - | K35: + | L35: + | M35: + | N35: + | O35: + | Q35: - | R35: -
A37: ProFital Fluid | B37: + | C37: - | D37: + | E37: + | F37: - | G37: ? | H37: ? | I37: + | J37: - | K37: + | L37: + | M37: + | N37: + | O37: + | P37: - | R37: -
A39: NuFilm | B39: + | C39: - | D39: + | E39: + | F39: - | G39: ? | H39: ? | I39: + | J39: - | K39: + | L39: + | M39: + | N39: + | O39: + | P39: - | Q39: -
F42: Quelle: DLR RNH Beate Fader und Frederik Heller | RP Darmstadt, Dezernat Weinbau, Veronica Ullrich, Stand 2021

Sheet Rohdaten Peronospora (hidden)
G3: niedrig bis mittel | J3: ja
G4: mittel bis hoch | J4: nein
B7: Bitte zutreffendes Krankheitsrisiko auswählen
B9: Peronospora Risiko ►► | C9: mittel bis hoch | G9: Werte: | J9: Cuprozin | M9: Funguran
C11: Cuprozin | D11: Funguran | G11: Cuprozin | H11: Funguran | J11: niedrig bis mittel | K11: mittel bis hoch | M11: niedrig bis mittel | N11: mittel bis hoch
B13: ES 15 | C13: =IF($C$9="","",G13) -> 100 | D13: 100 | G13: =IF($C$9="niedrig bis mittel",J13,K13) -> 100 | H13: =IF($C$9="niedrig bis mittel",M13,N13) -> 100 | J13: 80 | K13: 100 | M13: 100 | N13: 100
B14: ES 53 bis 55 | C14: 120 | D14: 150 | G14: =IF($C$9="niedrig bis mittel",J14,K14) -> 120 | H14: =IF($C$9="niedrig bis mittel",M14,N14) -> 150 | J14: 100 | K14: 120 | M14: 120 | N14: 150
B15: ES 65 | C15: 150 | D15: 200 | G15: =IF($C$9="niedrig bis mittel",J15,K15) -> 150 | H15: =IF($C$9="niedrig bis mittel",M15,N15) -> 200 | J15: 100 | K15: 150 | M15: 150 | N15: 200
B16: ES 68 | C16: 150 | D16: 250 | G16: =IF($C$9="niedrig bis mittel",J16,K16) -> 150 | H16: =IF($C$9="niedrig bis mittel",M16,N16) -> 250 | J16: 100 | K16: 150 | M16: 200 | N16: 250
B17: ES 71 | C17: 200 | D17: 300 | G17: 200 | H17: 300 | J17: 100 | K17: 200 | M17: 200 | N17: 300
B18: Weitere Beh. 1 | C18: 200 | D18: 300 | G18: 200 | H18: 300 | J18: 100 | K18: 200 | M18: 200 | N18: 300
B19: Weitere Beh. 2 | C19: 150 | D19: 250 | G19: 150 | H19: 250 | J19: 100 | K19: 150 | M19: 200 | N19: 250
B20: Weitere Beh. 3 | C20: 150 | D20: 250 | G20: 150 | H20: 250 | J20: 100 | K20: 150 | M20: 200 | N20: 250
B21: Weitere Beh. 4 | C21: 150 | D21: 250 | G21: 150 | H21: 250 | J21: 100 | K21: 150 | M21: 200 | N21: 250
B22: Abschluss | C22: 180 | D22: 300 | G22: 180 | H22: 300 | J22: 100 | K22: 180 | M22: 200 | N22: 300
B23: Fruchtreife | C23: 300 | D23: 300 | G23: 300 | H23: 300 | J23: 200 | K23: 300 | M23: 300 | N23: 300

Sheet Rohdaten Oidium (hidden)
G3: niedrig bis mittel
G4: mittel bis hoch
B7: Bitte zutreffendes Krankheitsrisiko auswählen
B9: Oidium Risiko ►► | C9: mittel bis hoch | G9: Werte: | J9: Kumar | M9: Netzschwefel
C11: Kumar | D11: Netzschwefel | G11: Kumar | H11: Netzschwefel | J11: niedrig bis mittel | K11: mittel bis hoch | M11: niedrig bis mittel | N11: mittel bis hoch
B13: ES 15 | C13: =IF($C$9="","",G13) -> 0 | D13: =IF($C$9="","",H13) -> 3.6 | G13: =IF($C$9="niedrig bis mittel",J13,K13) -> 0 | H13: =IF($C$9="niedrig bis mittel",M13,N13) -> 3.6 | J13: 0 | K13: 0 | M13: 3.6 | N13: 3.6
B14: ES 53 bis 55 | C14: 1.25 | D14: 3 | G14: =IF($C$9="niedrig bis mittel",J14,K14) -> 1.25 | H14: =IF($C$9="niedrig bis mittel",M14,N14) -> 3 | J14: 0 | K14: 1.25 | M14: 5 | N14: 3
B15: ES 65 | C15: 150 | D15: 3 | G15: =IF($C$4="niedrig bis mittel", 'Rohdaten Peronospora'!J15, 'Rohdaten Peronospora'!K15) -> 150 | H15: =IF($C$9="niedrig bis mittel",M15,N15) -> 3 | J15: 2.5 | K15: 2.5 | M15: 3 | N15: 3
B16: ES 68 | C16: 2.5 | D16: 3 | G16: =IF($C$9="niedrig bis mittel",J16,K16) -> 2.5 | H16: =IF($C$9="niedrig bis mittel",M16,N16) -> 3 | J16: 2.5 | K16: 2.5 | M16: 3 | N16: 3
B17: ES 71 | C17: 3.75 | D17: 2 | G17: 3.75 | H17: 2 | J17: 3 | K17: 3.75 | M17: 3 | N17: 2
B18: Weitere Beh. 1 | C18: 5 | D18: 1 | G18: 5 | H18: 1 | J18: 3 | K18: 5 | M18: 3 | N18: 1
B19: Weitere Beh. 2 | C19: 5 | D19: 1 | G19: 5 | H19: 1 | J19: 3 | K19: 5 | M19: 3 | N19: 1
B20: Weitere Beh. 3 | C20: 5 | D20: 1 | G20: 5 | H20: 1 | J20: 3 | K20: 5 | M20: 3 | N20: 1
B21: Weitere Beh. 4 | C21: 5 | D21: 0 | G21: 5 | H21: 0 | J21: 5 | K21: 5 | M21: 0 | N21: 0
B22: Weitere Beh. 5 | C22: 5 | D22: 0 | G22: 5 | H22: 0 | J22: 5 | K22: 5 | M22: 0 | N22: 0
B23: Fruchtreife | C23: 5 | D23: 0 | G23: 5 | H23: 0 | J23: 5 | K23: 5 | M23: 0 | N23: 0
